[Event "DFMM-LV 2023"]
[Site "Braunfels"]
[Date "2023.06.10"]
[Round "4.37"]
[White "Guder, Sibylle"]
[Black "Daemering, Katrin"]
[Result "1/2-1/2"]
[Annotator "TA"]
[ECO "A25"]
[WhiteElo "1808"]
[BlackElo "1944"]
[PlyCount "117"]
[EventDate "2023.06.09"]
[EventType "team-tourn"]
[EventCountry "GER"]
[SourceTitle "playchess.com"]
[Source "ChessBase"]
[SourceQuality "1"]
[TimeControl "40/5400+30:1800+30"]

{[%evp 15,117,11,53,38,53,55,56,46,56,54,66,62,84,90,95,86,104,82,70,77,82,72,227,88,142,118,139,92,95,81,139,137,179,39,23,30,36,20,25,-18,0,0,0,-75,0,0,0,0,0,0,0,0,0,0,0,0,0,0,0,0,16,0,0,0,0,0,0,0,5,0,0,-5,-5,-35,-45,-25,-39,-66,-14,-7,0,0,0,0,0,0,0,0,0,0,0,0,0,0,0,-91,0,0,0,0,0,0,0,0]} 1. c4 {[%emt 0:00:03]} g6 {[%emt 0:00:05]} 2. g3 {[%emt 0:00:06]} Bg7 {[%emt 0:00:04]} 3. Nc3 {[%emt 0:00:05]} d6 {[%emt 0:00:32]} 4. Bg2 {[%emt 0:00:05]} e5 {[%emt 0:00:41]} 5. d3 {[%emt 0:00:07]} Ne7 {[%emt 0:03:20]} 6. e3 {[%emt 0:02:58]} Nbc6 {[%emt 0:00:52]} 7. Nge2 {[%emt 0:00:28]} O-O {[%emt 0:02:36]} 8. O-O {[%emt 0:00:19]} f5 {[%emt 0:01:21]} 9. Rb1 {[%emt 0:00:20] A25: English Opening vs King's Indian with ...Nc6 but without early d3.} g5 {[%emt 0:04:27][%cal Of5f4]} 10. f4 {[%emt 0:04:32]} gxf4 {[%emt 0:07:29]} 11. exf4 {[%emt 0:00:46] White is slightly better.} Ng6 {[%emt 0:00:14]} 12. Nd5 {[%emt 0:04:56] [#]} Be6 $146 {[%emt 0:05:16]} ({Predecessor:} 12... a5 13. a3 Nce7 14. b4 axb4 15. axb4 c6 16. Nxe7+ Qxe7 17. b5 Bd7 18. bxc6 Bxc6 {0-1 Schmitt,C (1959)-Savchenko,B (2615) Politiken Cup 33rd 2011 (1)}) 13. b4 {[%emt 0:01:51][%cal Bb2b4,Bb4b5][%mdl 32]} Qd7 {[%emt 0:05:24]} 14. b5 {[%emt 0:12:11]} Nd8 {[%emt 0:00:25]} 15. a4 {[%emt 0:00:28][%cal Ba2a4,Ba4a5,Ba5a6][%mdl 32]} Kh8 {[%emt 0:16:43]} 16. Bd2 {[%emt 0:05:34]} Bxd5 {[%emt 0:03:56]} 17. cxd5 {[%emt 0:08:36]} Rc8 {[%emt 0:12:16]} 18. a5 {[%emt 0:05:27]} Qf7 $2 {[%emt 0:06:00]} (18... b6 $16) 19. Rc1 {[%emt 0:02:52]} (19. fxe5 $18 {is more deadly. Strongly threatening e6.} Nxe5 20. Qc2) 19... Ne7 {[%emt 0:02:21]} (19... Qd7 $142) 20. Nc3 {[%emt 0:04:06]} Qg6 {[%emt 0:04:25]} 21. Na2 {[%emt 0:13:24]} ({Better is} 21. Re1) 21... Nf7 {[%emt 0:05:56]} 22. Nb4 {[%emt 0:01:42]} Nh6 {[%emt 0:07:28]} (22... exf4 $142 23. Bxf4 (23. Rxf4 Ne5 $14) 23... Bb2) 23. a6 $16 {[%emt 0:04:04]} b6 {[%emt 0:00:23]} 24. Nc6 {[%emt 0:09:01]} (24. Qe2 $18) 24... Nxc6 $14 {[%emt 0:00:06]} 25. Rxc6 {[%emt 0:00:25]} Ng4 {[%emt 0:07:00]} 26. Rc4 {[%emt 0:05:03]} exf4 {[%emt 0:01:17]} 27. gxf4 {[%emt 0:04:59]} Rg8 {[%emt 0:00:19][%cal Og7d4]} 28. Qf3 $1 {[%emt 0:01:39]} Qh6 {[%emt 0:01:42][%csl Gg4][%cal Rh6h2]} 29. Qh3 {[%emt 0:01:23] [#]} (29. h3 $11 {remains equal.} Ne5 30. fxe5 Qxd2 31. e6 (31. Qxf5 $2 Rcf8 $19)) 29... Qg6 {[%emt 0:01:10]} (29... Qf6 $1 $17 {[%cal Rf6b2] Threatens to win with ...Qb2.} 30. Rb1 (30. Bc3 Qf7 $17) 30... Qg6) 30. Qf3 $1 $11 {[%emt 0:01:43]} Qh6 {[%emt 0:00:16][%csl Gg4][%cal Rh6h2]} 31. h3 {[%emt 0:02:08]} Nf6 {[%emt 0:00:05]} 32. Rfc1 {[%emt 0:00:30]} Ne8 {[%emt 0:00:10]} 33. Kh2 {[%emt 0:00:28]} Bf6 {[%emt 0:00:34]} 34. Rg1 {[%emt 0:01:18]} Rg7 {[%emt 0:00:47]} 35. Bf1 {[%emt 0:00:40][%cal Og1g5]} Rxg1 {[%emt 0:00:59]} 36. Kxg1 {[%emt 0:00:05]} Ng7 {[%emt 0:01:06]} 37. Kh2 {[%emt 0:01:21]} Bh4 {[%emt 0:00:30] Black is weak on the light squares} 38. Be2 {[%emt 0:00:38]} Qg6 {[%emt 0:00:19]} 39. Bc3 {[%emt 0:00:46]} Bf6 {[%emt 0:00:22]} 40. Bd2 {[%emt 0:01:00]} Bh4 {[%emt 0:00:12]} 41. Bc3 {[%emt 0:04:34]} Bf6 {[%emt 0:00:11]} 42. Bb4 {[%emt 0:06:09]} Rg8 {[%emt 0:04:36][%cal Og7e6]} 43. Qf2 {[%emt 0:03:07]} Ne8 {[%emt 0:03:10]} 44. Rc1 {[%emt 0:02:02] [#] Active counter play!} Bh4 $1 {[%emt 0:08:14][%mdl 64] Deflection} 45. Bc3+ {[%emt 0:00:19]} Nf6 {[%emt 0:02:29]} 46. Qf3 {[%emt 0:02:37]} ({Much weaker is} 46. Qg1 Qe8 47. Qf1 Qxb5 $17) 46... h6 {[%emt 0:01:41]} ({Black should play} 46... Rg7 $1 $15) 47. Bd4 $132 {[%emt 0:01:47][%mdl 2048] White has counterplay} Rg7 {[%emt 0:02:56]} 48. Rg1 {[%emt 0:03:09]} Qf7 {[%emt 0:00:07]} 49. Rxg7 {[%emt 0:01:08]} Qxg7 {[%emt 0:01:28]} 50. Qe3 {[%emt 0:05:15]} Kh7 {[%emt 0:01:06]} 51. Bxf6 {[%emt 0:01:37]} Qxf6 {[%emt 0:04:19][%mdl 4096] Endgame KQB-KQB} 52. d4 {[%emt 0:02:46]} Qg7 {[%emt 0:01:43]} 53. Bd3 {[%emt 0:00:09]} Qg6 {[%emt 0:01:19]} 54. Bc2 {[%emt 0:00:45]} Kg7 {[%emt 0:00:32]} 55. Qc3 {[%emt 0:01:13] [#]} (55. Bd3 $11) 55... Kf6 {[%emt 0:00:45]} (55... c6 $1 $17 {( -> ...Bf2)} 56. Qe3 (56. dxc6 {is a self mate.} Bf2 57. d5+ Kf7) 56... cxb5) 56. Qe3 {[%emt 0:00:15] Repels Bf2. The position is equal.} Kf7 {[%emt 0:00:58]} 57. Qd3 {[%emt 0:00:30]} Kf6 {[%emt 0:00:49] Hoping for ...Bf2.} 58. Qe3 {[%emt 0:00:06] Wards off Bf2} Kf7 {[%emt 0:00:13]} 59. Qd3 {[%emt 0:00:04] Black escapes into a draw.   Weighted Error Value: White=0.16 (very precise) /Black=0.13 (very precise)} 1/2-1/2

[Event "DFMM-LV 2023"]
[Site "Braunfels"]
[Date "2023.06.10"]
[Round "4.38"]
[White "Kosovska, Olena"]
[Black "Fock, Amina"]
[Result "0-1"]
[Annotator "NA RC COMBH"]
[ECO "D06"]
[WhiteElo "1894"]
[BlackElo "1836"]
[PlyCount "44"]
[EventDate "2023.06.09"]
[EventType "team-tourn"]
[EventCountry "GER"]
[SourceTitle "playchess.com"]
[Source "ChessBase"]
[SourceQuality "1"]
[TimeControl "40/5400+30:1800+30"]

1. c4 {[%emt 0:00:02]} c5 {[%emt 0:00:36]} 2. Nc3 {[%emt 0:00:05]} Nf6 {[%emt 0:00:10]} 3. Nf3 {[%emt 0:00:49]} d5 {[%emt 0:00:23]} 4. cxd5 {[%emt 0:01:01]} Nxd5 {[%emt 0:00:05]} 5. e4 {[%emt 0:01:03]} Nc7 {[%emt 0:00:09]} 6. d4 {[%emt 0:05:51]} cxd4 {[%emt 0:04:10]} 7. Nxd4 {[%emt 0:01:23]} e5 {[%emt 0:00:44]} 8. Qa4+ {[%emt 0:10:48]} Bd7 {[%emt 0:01:06]} 9. Ndb5 {[%emt 0:00:09]} Nba6 {[%emt 0:02:35]} 10. Nxc7+ {[%emt 0:08:17]} Nxc7 {[%emt 0:00:24]} 11. Qb3 {[%emt 0:00:22]} Bc5 {[%emt 0:08:43]} 12. Bc4 {[%emt 0:01:42]} O-O {[%emt 0:04:05]} 13. O-O {[%emt 0:01:17]} Bc6 {[%emt 0:01:19]} 14. Nd5 {[%emt 0:04:26]} Ne6 {[%emt 0:02:27]} 15. Qg3 {[%emt 0:02:29]} b5 {[%emt 0:06:24]} 16. Bb3 {[%emt 0:04:56]} Nd4 {[%emt 0:02:43]} 17. Qxe5 {[%emt 0:16:14]} Re8 {[%emt 0:09:02]} 18. Nf6+ {[%emt 0:18:14]} Qxf6 {[%emt 0:01:28]} 19. Qxc5 {[%emt 0:00:07]} Bxe4 {[%emt 0:02:07]} 20. Qg5 {[%emt 0:04:51]} Nf3+ {[%emt 0:00:47]} 21. gxf3 {[%emt 0:12:19]} Qxf3 {[%emt 0:00:09]} 22. Bxf7+ {[%emt 0:00:12]} Kh8 {[%emt 0:00:14]} 0-1

[Event "DFMM-LV 2023"]
[Site "Braunfels"]
[Date "2023.06.10"]
[Round "4.39"]
[White "Fock, Sana"]
[Black "Lowke, Kathrin"]
[Result "1/2-1/2"]
[Annotator "NA RC COMBH"]
[ECO "B23"]
[WhiteElo "1785"]
[BlackElo "1848"]
[PlyCount "84"]
[EventDate "2023.06.09"]
[EventType "team-tourn"]
[EventCountry "GER"]
[SourceTitle "playchess.com"]
[Source "ChessBase"]
[SourceQuality "1"]
[TimeControl "40/5400+30:1800+30"]

1. e4 {[%emt 0:00:03]} c5 {[%emt 0:00:11]} 2. Nc3 {[%emt 0:00:07]} Nc6 {[%emt 0:00:21]} 3. f4 {[%emt 0:00:08]} g6 {[%emt 0:00:38]} 4. Nf3 {[%emt 0:00:05]} Bg7 {[%emt 0:00:08]} 5. Bb5 {[%emt 0:00:21]} d6 {[%emt 0:00:39]} 6. O-O {[%emt 0:00:46]} Bd7 {[%emt 0:02:20]} 7. Bc4 {[%emt 0:00:42]} Na5 {[%emt 0:07:40]} 8. Be2 {[%emt 0:01:06]} Nc6 {[%emt 0:03:49]} 9. Bc4 {[%emt 0:00:23]} Na5 {[%emt 0:07:36]} 10. Be2 {[%emt 0:01:38]} Nf6 {[%emt 0:02:06]} 11. Qe1 {[%emt 0:04:31]} O-O {[%emt 0:04:15]} 12. d3 {[%emt 0:03:17]} Nc6 {[%emt 0:00:36]} 13. Qh4 {[%emt 0:02:56]} Nd4 {[%emt 0:05:39]} 14. Bd1 {[%emt 0:03:02]} Rc8 {[%emt 0:08:18]} 15. a4 {[%emt 0:09:13]} a5 {[%emt 0:06:02]} 16. h3 {[%emt 0:08:35]} Bc6 {[%emt 0:05:25]} 17. Nxd4 {[%emt 0:03:21]} cxd4 {[%emt 0:00:21]} 18. Ne2 {[%emt 0:00:40]} Nd7 {[%emt 0:03:25]} 19. f5 {[%emt 0:10:09]} e5 {[%emt 0:03:48]} 20. Qxd8 {[%emt 0:09:28]} Rcxd8 {[%emt 0:00:55]} 21. Bd2 {[%emt 0:01:56]} b6 {[%emt 0:02:25]} 22. c3 {[%emt 0:07:09]} d5 {[%emt 0:02:25]} 23. exd5 {[%emt 0:03:20]} Bxd5 {[%emt 0:00:40]} 24. cxd4 {[%emt 0:02:05]} exd4 {[%emt 0:00:13]} 25. b4 {[%emt 0:03:20]} axb4 {[%emt 0:01:37]} 26. Bxb4 {[%emt 0:00:09]} Rfe8 {[%emt 0:00:14]} 27. Nf4 {[%emt 0:01:50]} Ne5 {[%emt 0:11:05]} 28. fxg6 {[%emt 0:02:48]} hxg6 {[%emt 0:00:41]} 29. Nxd5 {[%emt 0:00:15]} Rxd5 {[%emt 0:06:59]} 30. Bb3 {[%emt 0:00:10]} Rd7 {[%emt 0:00:25]} 31. Bd2 {[%emt 0:07:46]} Nxd3 {[%emt 0:05:57]} 32. Bc4 {[%emt 0:00:34]} Nc5 {[%emt 0:02:02]} 33. Bb5 {[%emt 0:01:17]} Rde7 {[%emt 0:00:56]} 34. Bxe8 {[%emt 0:00:19]} Rxe8 {[%emt 0:00:02]} 35. Rae1 {[%emt 0:01:36]} Ne6 {[%emt 0:00:44]} 36. Rb1 {[%emt 0:05:04]} Nc5 {[%emt 0:04:24]} 37. Rxb6 {[%emt 0:01:01]} Nxa4 {[%emt 0:00:07]} 38. Rb7 {[%emt 0:01:00]} f5 {[%emt 0:00:10]} 39. Rc7 {[%emt 0:03:10]} Nc3 {[%emt 0:01:05]} 40. Re1 {[%emt 0:04:00]} Ne4 {[%emt 0:01:08]} 41. Rd1 {[%emt 0:07:26]} Nc3 {[%emt 0:05:01]} 42. Bxc3 {[%emt 0:24:44]} dxc3 {[%emt 0:28:58]} 1/2-1/2

[Event "DFMM-LV 2023"]
[Site "Braunfels"]
[Date "2023.06.10"]
[Round "4.40"]
[White "Nobis, Martina"]
[Black "Grosse-Honebrink, Brigitte"]
[Result "1-0"]
[Annotator "NA RC COMBH"]
[ECO "C05"]
[WhiteElo "1834"]
[BlackElo "1891"]
[PlyCount "53"]
[EventDate "2023.06.09"]
[EventType "team-tourn"]
[EventCountry "GER"]
[SourceTitle "playchess.com"]
[Source "ChessBase"]
[SourceQuality "1"]
[TimeControl "40/5400+30:1800+30"]

1. e4 {[%emt 0:00:02]} e6 {[%emt 0:00:15]} 2. d4 {[%emt 0:00:10]} d5 {[%emt 0:00:14]} 3. Nd2 {[%emt 0:00:10]} Nf6 {[%emt 0:00:25]} 4. exd5 {[%emt 0:01:08]} exd5 {[%emt 0:00:25]} 5. Bd3 {[%emt 0:02:14]} Bg4 {[%emt 0:02:06]} 6. Ngf3 {[%emt 0:04:30]} Bd6 {[%emt 0:03:56]} 7. Qe2+ {[%emt 0:06:28]} Qe7 {[%emt 0:01:23]} 8. Qxe7+ {[%emt 0:00:07]} Bxe7 {[%emt 0:00:31]} 9. h3 {[%emt 0:04:40]} Bh5 {[%emt 0:00:21]} 10. Ne5 {[%emt 0:01:22]} O-O {[%emt 0:02:21]} 11. O-O {[%emt 0:02:58]} Nbd7 {[%emt 0:02:13]} 12. Ndf3 {[%emt 0:01:00]} Nxe5 {[%emt 0:06:24]} 13. Nxe5 {[%emt 0:07:41]} Ne4 {[%emt 0:07:09]} 14. Re1 {[%emt 0:16:57]} f6 {[%emt 0:14:05]} 15. Nf3 {[%emt 0:00:28]} f5 {[%emt 0:12:50]} 16. Bf4 {[%emt 0:06:24]} Bf6 {[%emt 0:09:10]} 17. Ne5 {[%emt 0:03:27]} Rad8 {[%emt 0:06:50]} 18. c3 {[%emt 0:02:03]} c6 {[%emt 0:02:06]} 19. Bc2 {[%emt 0:02:08]} Rfe8 {[%emt 0:03:03]} 20. f3 {[%emt 0:07:03]} Nd6 {[%emt 0:01:55]} 21. g4 {[%emt 0:05:29]} fxg4 {[%emt 0:01:39]} 22. hxg4 {[%emt 0:00:04]} Bf7 {[%emt 0:01:08]} 23. g5 {[%emt 0:04:35]} Be7 {[%emt 0:05:24]} 24. Re2 {[%emt 0:03:34]} Bh5 {[%emt 0:01:09]} 25. Rae1 {[%emt 0:03:50]} Rf8 {[%emt 0:02:07]} 26. Nd3 {[%emt 0:02:12]} Rxf4 {[%emt 0:02:14]} 27. Nxf4 {[%emt 0:00:34]} 1-0

[Event "DFMM-LV 2023"]
[Site "Braunfels"]
[Date "2023.06.10"]
[Round "4.41"]
[White "Krasnopeyeva, Julia"]
[Black "Nguyen, Ha Thanh"]
[Result "1/2-1/2"]
[Annotator "TA"]
[ECO "B35"]
[WhiteElo "1895"]
[BlackElo "1968"]
[PlyCount "44"]
[EventDate "2023.06.09"]
[EventType "team-tourn"]
[EventCountry "GER"]
[SourceTitle "playchess.com"]
[Source "ChessBase"]
[SourceQuality "1"]
[TimeControl "40/5400+30:1800+30"]

{[%evp 20,44,43,8,10,7,70,39,46,28,38,0,0,0,0,0,43,36,92,0,53,-30,-27,-10,-20,-37,-33]} 1. e4 {[%emt 0:00:02]} c5 {[%emt 0:00:06]} 2. Nf3 {[%emt 0:00:05]} Nc6 {[%emt 0:00:07]} 3. d4 {[%emt 0:00:12]} cxd4 {[%emt 0:00:05]} 4. Nxd4 {[%emt 0:00:05]} g6 {[%emt 0:00:07]} 5. Nc3 {[%emt 0:00:39]} Bg7 {[%emt 0:00:08]} 6. Be3 {[%emt 0:00:08]} Nf6 {[%emt 0:00:06]} 7. Bc4 {[%emt 0:01:16]} Qa5 {[%emt 0:00:13]} 8. O-O {[%emt 0:00:34]} O-O {[%emt 0:00:14]} 9. Bb3 {[%emt 0:01:31]} d6 {[%emt 0:00:35]} 10. h3 {[%emt 0:00:51]} Bd7 {[%emt 0:00:49]} 11. f4 {[%emt 0:07:20]} Nxd4 {[%emt 0:32:37] B35: Sicilian: Accelerated Dragon with 5 Nc3: main line.} 12. Bxd4 {[%emt 0:00:21]} ({Of course not} 12. Qxd4 Ng4 13. Qd2 Nxe3 14. Qxe3 Bxc3 15. bxc3 Rac8 $15) 12... Be6 {[%emt 0:01:16] [#]} (12... Bc6 $11) 13. Qf3 $146 {[%emt 0:07:28]} (13. f5 $5 {[%cal Rf5e6]} Bxb3 14. axb3 $16) ({Predecessor:} 13. Nd5 Rae8 14. f5 Bxd5 15. exd5 Nd7 16. Bxg7 Kxg7 17. Qd4+ Ne5 18. Rae1 f6 19. Re4 {0-1 Perez Mitjans,O (2429)-Moreno Ruiz,J (2469) Azuqueca de Henares op 2013 (4)}) 13... Nd7 {[%emt 0:19:21] White is slightly better.} 14. Bxg7 {[%emt 0:01:50]} Kxg7 {[%emt 0:00:05]} 15. Nd5 {[%emt 0:04:08]} Bxd5 {[%emt 0:02:58]} 16. exd5 {[%emt 0:00:15]} Qb6+ {[%emt 0:03:27]} 17. Kh1 {[%emt 0:00:47]} Rac8 {[%emt 0:05:45]} (17... a5 $5 {[%cal Ra5a4]}) 18. Rae1 {[%emt 0:01:27]} Rfe8 {[%emt 0:04:30]} (18... Qd8 $14) 19. f5 {[%emt 0:03:46]} (19. Ba4 $16 Qc7 20. f5) 19... f6 {[%emt 0:00:36]} (19... Ne5 $11 20. f6+ Kg8) 20. c3 {[%emt 0:04:11]} ({White should try} 20. fxg6 $14 hxg6 21. Re6) 20... Ne5 $11 {[%emt 0:01:37]} 21. Qg3 {[%emt 0:01:57]} g5 {[%emt 0:01:02]} 22. Re4 {[%emt 0:03:59]} Rg8 {[%emt 0:25:46] Weighted Error Value: White=0.34/Black=0.25 (precise)} 1/2-1/2

[Event "DFMM-LV 2023"]
[Site "Braunfels"]
[Date "2023.06.10"]
[Round "4.42"]
[White "Skibbe, Diana"]
[Black "Mader, Lena"]
[Result "1-0"]
[Annotator "TA"]
[ECO "B15"]
[WhiteElo "1956"]
[BlackElo "1778"]
[PlyCount "103"]
[EventDate "2023.06.09"]
[EventType "team-tourn"]
[EventCountry "GER"]
[SourceTitle "playchess.com"]
[Source "ChessBase"]
[SourceQuality "1"]
[TimeControl "40/5400+30:1800+30"]

{[%evp 10,103,28,18,17,18,20,7,48,18,11,9,29,5,20,7,13,11,11,0,13,0,32,45,45,17,78,75,52,55,85,26,14,0,0,-116,-120,-108,-43,-48,-58,-66,-56,-60,-61,-76,-62,-97,-69,-64,-62,-58,-68,-67,-30,-93,369,381,369,377,529,518,510,503,1350,1313,1192,551,1187,1214,1152,1139,1345,1311,1262,1171,12839,12839,12839,12840,12832,1326,6733,1368,2342,1053,1393,1197,29987,29988,29991,29992,29992,29991,29997,29997]} 1. e4 {[%emt 0:00:01]} c6 {[%emt 0:00:04]} 2. d4 {[%emt 0:00:18]} d5 {[%emt 0:00:05]} 3. Nc3 {[%emt 0:00:28]} dxe4 {[%emt 0:00:10]} 4. Nxe4 {[%emt 0:00:02]} Nf6 {[%emt 1:32:11]} 5. Nxf6+ {[%emt 0:00:09]} exf6 {[%emt 0:00:00]} 6. Be3 {[%emt 0:02:20]} Bd6 {[%emt 0:00:00] B15: Caro-Kann: 3 Nc3: 3...g6 and 3...dxe4 4 Nxe4 Nf6 5 Nxf6+ exf6.} 7. Bd3 {[%emt 0:00:30]} O-O {[%emt 0:00:00]} 8. Ne2 {[%emt 0:01:46]} Bg4 {[%emt 0:00:00] The position is equal.} 9. Qd2 {[%emt 0:00:36]} Re8 {[%emt 0:00:00]} 10. O-O {[%emt 0:10:44]} Nd7 {[%emt 0:00:00]} 11. h3 {[%emt 0:00:23]} Bh5 {[%emt 0:00:00]} 12. Nf4 {[%emt 0:00:07]} Bg6 {[%emt 0:00:00]} 13. Nxg6 {[%emt 0:01:41]} hxg6 {[%emt 0:00:00]} 14. c4 {[%emt 0:00:38] [#]} Bc7 $146 {[%emt 0:00:00]} ({Predecessor:} 14... f5 15. Bg5 Qc7 16. g3 f6 17. Bf4 Bxf4 18. Qxf4 Qxf4 19. gxf4 Rad8 20. Rfe1 Rxe1+ 21. Rxe1 {0-1 Harshini,A (2149)-Balabayeva,K (2230) Asian Continental op (Women) 19th 2022 (4)}) 15. Rfe1 {[%emt 0:01:02]} Nf8 {[%emt 0:00:00]} 16. Bf1 {[%emt 0:01:59]} Ne6 {[%emt 0:00:00]} 17. Red1 {[%emt 0:03:35]} f5 {[%emt 0:00:00] [#]} (17... Ng5 $11) 18. d5 $1 $16 {[%emt 0:03:59]} Qd6 {[%emt 0:00:00][%csl Gc7][%cal Rd6h2]} 19. g3 {[%emt 0:00:22]} Nc5 {[%emt 0:00:00]} 20. Bf4 {[%emt 0:02:18]} (20. Bg2 $16) 20... Qd7 $11 {[%emt 0:00:00]} 21. d6 {[%emt 0:01:21]} Ne4 {[%emt 0:00:00]} 22. Qd3 {[%emt 0:06:53]} (22. dxc7 $11 {keeps the balance.} Nxd2 23. Rxd2) 22... Bb6 $17 {[%emt 0:00:00]} 23. Be3 {[%emt 0:02:32] [#]} Bxe3 {[%emt 0:00:00]} (23... Re6 $1 $17 {[%cal Re6d6]} 24. Bxb6 axb6) 24. Qxe3 $15 {[%emt 0:00:35]} b6 {[%emt 0:00:00]} (24... Nxd6 $2 25. Qf4 $18) 25. b4 {[%emt 0:02:32]} c5 {[%emt 0:00:00]} (25... Nxd6 $2 26. Qf4 $18) 26. bxc5 {[%emt 0:02:47]} Nxc5 {[%emt 0:00:00]} 27. Qf4 {[%emt 0:07:02]} Re4 {[%emt 0:00:07]} 28. Qg5 {[%emt 0:02:35]} Rd8 {[%emt 0:00:23]} 29. Rd5 {[%emt 0:01:19]} Re6 {[%emt 0:01:29]} 30. Rad1 {[%emt 0:00:38]} Ne4 {[%emt 0:00:16][%csl LRd6,LRg5]} 31. Qc1 {[%emt 0:01:21]} Qa4 {[%emt 0:08:20]} ({Don't play} 31... Nxd6 32. c5 bxc5 33. Qxc5 $11) (31... Qc6 $5) 32. f3 {[%emt 0:05:11]} (32. Bg2 $11) 32... Nxg3 $2 {[%emt 0:01:35][%mdl 8192] This costs Black the game.} ({Of course not} 32... Nxd6 $6 33. Qf4 $11) (32... Nf6 $17 {keeps the pressure on.} 33. R5d3 (33. R5d2 Nd7 $15) 33... Qc6) 33. Qg5 $1 $18 {[%emt 0:00:09][%csl LRd8,LRg3]} Rd7 {[%emt 0:01:13] And now ...Nxf1 would win.} 34. Qxg3 {[%emt 0:00:10]} Qxa2 {[%emt 0:00:08]} (34... Kh7 $142 35. c5 bxc5 36. Rxc5 Re8) 35. c5 {[%emt 0:02:53]} bxc5 {[%emt 0:00:52]} 36. Rxc5 {[%emt 0:00:07] Threatening mate with Rc8+.} Re8 {[%emt 0:00:32] Wards off Rc8} (36... g5 $142 37. Rxf5 Rg6 38. Rxg5 Rxg5 39. Qxg5 Qe6) 37. Bb5 {[%emt 0:01:20][%mdl 64] Skewer} Qb3 {[%emt 0:00:47]} 38. Rcd5 {[%emt 0:01:02]} (38. Re1 $142 Rdd8 39. Bxe8) 38... Red8 {[%emt 0:00:33]} 39. Bxd7 {[%emt 0:00:45]} Rxd7 {[%emt 0:00:00]} 40. Kg2 {[%emt 0:00:22]} Qb2+ {[%emt 0:00:38]} 41. R1d2 {[%emt 0:30:04]} Qf6 {[%emt 0:04:16]} 42. h4 {[%emt 0:00:00]} Qc3 {[%emt 0:01:58]} 43. Qe5 {[%emt 0:00:00]} Qc8 {[%emt 0:03:14]} 44. Re2 {[%emt 0:00:00] White threatens Rc5 and mate.} Kh7 {[%emt 0:00:42]} 45. Rd4 {[%emt 0:00:00][%cal Oh4h5] Hoping for h5!} Qc6 {[%emt 0:02:18]} 46. Kg3 {[%emt 0:00:00][%cal Oh4h5] h5! is the strong threat.} Qc1 {[%emt 0:00:59]} 47. Re1 {[%emt 0:00:00]} Qc3 {[%emt 0:04:00]} 48. Rdd1 {[%emt 0:00:00]} Qb4 {[%emt 0:01:34] [#]} 49. h5 $1 {[%emt 0:00:00] White mates.} a5 {[%emt 0:03:13]} (49... gxh5 50. Qxf5+) 50. hxg6+ {[%emt 0:00:00]} Kxg6 {[%emt 0:00:11]} 51. Rd5 {[%emt 0:00:00][%csl LRa5,LRf5]} f4+ {[%emt 0:02:06]} 52. Kg4 {[%emt 0:00:00] Excellently played by Skibbe!   Weighted Error Value: White=0.42/Black=0.42} 1-0

[Event "DFMM-LV 2023"]
[Site "Braunfels"]
[Date "2023.06.10"]
[Round "4.43"]
[White "Anisimova, Mariya"]
[Black "Bethge, Johanna"]
[Result "1-0"]
[Annotator "NA RC COMBH"]
[ECO "B90"]
[WhiteElo "1649"]
[BlackElo "1721"]
[PlyCount "115"]
[EventDate "2023.06.09"]
[EventType "team-tourn"]
[EventCountry "GER"]
[SourceTitle "playchess.com"]
[Source "ChessBase"]
[SourceQuality "1"]
[TimeControl "40/5400+30:1800+30"]

1. e4 {[%emt 0:00:02]} c5 {[%emt 0:00:11]} 2. Nf3 {[%emt 0:00:05]} d6 {[%emt 0:00:10]} 3. d4 {[%emt 0:00:06]} cxd4 {[%emt 0:00:03]} 4. Nxd4 {[%emt 0:00:06]} Nf6 {[%emt 0:00:17]} 5. Nc3 {[%emt 0:00:07]} a6 {[%emt 0:00:25]} 6. f3 {[%emt 0:02:57]} b5 {[%emt 0:04:05]} 7. Be3 {[%emt 0:01:14]} Nbd7 {[%emt 0:04:09]} 8. Qd2 {[%emt 0:00:46]} Nb6 {[%emt 0:01:56]} 9. b3 {[%emt 0:04:23]} Qc7 {[%emt 0:01:11]} 10. Bd3 {[%emt 0:00:37]} Bb7 {[%emt 0:01:08]} 11. O-O {[%emt 0:00:28]} d5 {[%emt 0:03:04]} 12. Nxd5 {[%emt 0:03:12]} Nbxd5 {[%emt 0:00:35]} 13. exd5 {[%emt 0:00:07]} Nxd5 {[%emt 0:00:24]} 14. Nxb5 {[%emt 0:09:00]} Qd7 {[%emt 0:05:49]} 15. Na3 {[%emt 0:06:58]} Nxe3 {[%emt 0:03:04]} 16. Qxe3 {[%emt 0:00:10]} e6 {[%emt 0:00:40]} 17. Nc4 {[%emt 0:00:37]} Qc7 {[%emt 0:01:37]} 18. Kh1 {[%emt 0:01:56]} Bc5 {[%emt 0:06:10]} 19. Qg5 {[%emt 0:03:05]} Kf8 {[%emt 0:00:14]} 20. Nd2 {[%emt 0:02:06]} Bd6 {[%emt 0:06:04]} 21. Qh5 {[%emt 0:02:19]} h6 {[%emt 0:02:04]} 22. Ne4 {[%emt 0:04:30]} g6 {[%emt 0:01:21]} 23. Qh4 {[%emt 0:03:56]} Be5 {[%emt 0:04:58]} 24. Rad1 {[%emt 0:01:21]} Rd8 {[%emt 0:00:29]} 25. f4 {[%emt 0:07:53]} g5 {[%emt 0:03:39]} 26. Qf2 {[%emt 0:07:11]} Bxf4 {[%emt 0:04:09]} 27. Qc5+ {[%emt 0:02:23]} Kg7 {[%emt 0:06:47]} 28. Qxc7 {[%emt 0:02:02]} Bxc7 {[%emt 0:00:05]} 29. Nc5 {[%emt 0:00:14]} Bc8 {[%emt 0:02:51]} 30. Bxa6 {[%emt 0:06:30]} Bb6 {[%emt 0:01:21]} 31. Bxc8 {[%emt 0:02:03]} Bxc5 {[%emt 0:00:05]} 32. Bb7 {[%emt 0:00:44]} f5 {[%emt 0:02:12]} 33. a4 {[%emt 0:00:24]} Bb4 {[%emt 0:03:55]} 34. g3 {[%emt 0:01:44]} Kf6 {[%emt 0:01:29]} 35. Kg2 {[%emt 0:01:25]} h5 {[%emt 0:06:58]} 36. Ba6 {[%emt 0:03:14]} Rhe8 {[%emt 0:01:59]} 37. Bb5 {[%emt 0:01:03]} Rf8 {[%emt 0:01:08]} 38. Bd3 {[%emt 0:03:57]} Rc8 {[%emt 0:04:56]} 39. Kf3 {[%emt 0:01:09]} e5 {[%emt 0:03:59]} 40. Ke2 {[%emt 0:00:19]} Ke6 {[%emt 0:00:29]} 41. Bc4+ {[%emt 0:30:44]} Ke7 {[%emt 0:30:36]} 42. Rd5 {[%emt 0:00:41]} Rc5 {[%emt 0:01:11]} 43. Rxc5 {[%emt 0:06:19]} Bxc5 {[%emt 0:00:05]} 44. c3 {[%emt 0:02:38]} f4 {[%emt 0:05:32]} 45. b4 {[%emt 0:00:45]} Be3 {[%emt 0:00:26]} 46. Bd5 {[%emt 0:01:03]} g4 {[%emt 0:07:15]} 47. c4 {[%emt 0:00:33]} h4 {[%emt 0:00:00]} 48. a5 {[%emt 0:00:00]} hxg3 {[%emt 0:00:00]} 49. hxg3 {[%emt 0:00:00]} Bd4 {[%emt 0:00:00]} 50. Kd3 {[%emt 0:00:00]} f3 {[%emt 0:00:00]} 51. c5 {[%emt 0:00:00]} Rb8 {[%emt 0:00:00]} 52. Kc4 {[%emt 0:00:00]} e4 {[%emt 0:00:00]} 53. Bxe4 {[%emt 0:00:00]} Be5 {[%emt 0:00:00]} 54. a6 {[%emt 0:00:00]} Bxg3 {[%emt 0:00:00]} 55. a7 {[%emt 0:00:00]} Ke6 {[%emt 0:00:00]} 56. axb8=Q {[%emt 0:00:00]} Bxb8 {[%emt 0:00:00]} 57. b5 {[%emt 0:00:00]} Ke5 {[%emt 0:00:00]} 58. Bxf3 {[%emt 0:00:00]} 1-0